fUST/lending_fUST_20250614
["ID","MTS","AMOUNT","RATE_DAILY","PERIOD"]
[365790369,1749915046199,-460.0,0.00022191,4]
[365790370,1749915046217,-460.0,0.00022191,4]
[365790371,1749915046231,-425.52562561,0.00022191,4]
[365790372,1749915046247,-460.0,0.00022191,4]
[365790373,1749915046266,-460.0,0.00022191,4]
[365790374,1749915046286,-525.85231248,0.00022191,4]
[365790375,1749915046300,-548.32589295,0.00022191,4]
[365790376,1749915046315,-460.0,0.00022191,4]
[365790377,1749915046333,-460.0,0.00022191,4]
[365790378,1749915046349,-500.0,0.00022191,4]
[365790379,1749915046362,-759.21,0.00022191,4]
[365790380,1749915046376,-460.0,0.00022191,4]
[365790381,1749915046392,-460.0,0.00022191,4]
[365790382,1749915046407,-460.0,0.00022191,4]
[365790383,1749915046421,-460.0,0.00022191,4]
[365790384,1749915046437,-401.29853876,0.00022191,4]
[365790385,1749915046456,-460.0,0.00022191,4]
[365790386,1749915046471,-282.25293673,0.00022191,4]
[365790387,1749915046487,-460.0,0.00022191,4]
[365790388,1749915046502,-460.0,0.00022191,4]
[365790389,1749915046517,-460.0,0.00022191,4]
[365790390,1749915046533,-316.97082694,0.00022191,4]
[365790391,1749915046548,-833.87,0.00022191,4]
[365790392,1749915046562,-460.0,0.00022191,4]
[365790393,1749915046597,-568.07382858,0.00022191,4]
[365790394,1749915046620,-460.0,0.00022191,4]
[365790395,1749915046642,-460.0,0.00022191,4]
[365790396,1749915046661,-460.0,0.00022191,4]
[365790397,1749915046679,-460.0,0.00022191,4]
[365790398,1749915046696,-460.0,0.00022191,4]
[365790399,1749915046714,-460.0,0.00022191,4]
[365790400,1749915046725,-509.9,0.00022191,4]
[365790401,1749915046735,-460.0,0.00022191,4]
[365790402,1749915046744,-288.38289887,0.00022191,4]
[365790403,1749915046753,-448.81,0.00022191,4]
[365790404,1749915046763,-460.0,0.00022191,4]
[365790405,1749915046772,-460.0,0.00022191,4]
[365790406,1749915046781,-460.0,0.00022191,4]
[365790407,1749915046791,-249.04152307,0.00022191,4]
[365790408,1749915046800,-460.0,0.00022191,4]
[365790409,1749915046810,-460.0,0.00022191,4]
[365790410,1749915046820,-390.0,0.00022191,4]
[365790411,1749915046829,-460.0,0.00022191,4]
[365790412,1749915046839,-400.0,0.00022191,4]
[365790415,1749915047023,-174.45383308,0.00022191,4]
[365790417,1749915047039,-460.0,0.00022191,4]
[365790418,1749915047049,-460.0,0.00022191,4]
[365790420,1749915047059,-460.0,0.00022191,4]
[365790421,1749915047068,-460.0,0.00022191,4]
[365790422,1749915047077,-1804.39,0.00022191,4]
[365790423,1749915047086,-460.0,0.00022191,4]
[365790424,1749915047096,-460.0,0.00022191,4]
[365790425,1749915047106,-460.0,0.00022191,4]
[365790426,1749915047119,-2887.84,0.00022191,4]
[365790427,1749915047129,-2233.91,0.00022191,4]
[365790428,1749915047139,-460.0,0.00022191,4]
[365790429,1749915047149,-460.0,0.00022191,4]
[365790430,1749915047159,-460.0,0.00022191,4]
[365790431,1749915047168,-460.0,0.00022191,4]
[365790432,1749915047178,-345.40643325,0.00022191,4]
[365790433,1749915047187,-460.0,0.00022191,4]
[365790434,1749915047197,-460.0,0.00022191,4]
[365790435,1749915047206,-460.0,0.00022191,4]
[365790436,1749915047216,-460.0,0.00022191,4]
[365790437,1749915047225,-516.62,0.00022191,4]
[365790438,1749915047235,-392.65062192,0.00022191,4]
[365790439,1749915047244,-460.0,0.00022191,4]
[365790440,1749915047255,-460.0,0.00022191,4]
[365790441,1749915047265,-460.0,0.00022191,4]
[365790442,1749915047275,-410.0,0.00022191,4]
[365790443,1749915047284,-460.0,0.00022191,4]
[365790444,1749915047293,-3097.92,0.00022191,4]
[365790445,1749915047304,-460.0,0.00022191,4]
[365790446,1749915047313,-460.0,0.00022191,4]
[365790447,1749915047323,-460.0,0.00022191,4]
[365790448,1749915047332,-2084.42,0.00022191,4]
[365790449,1749915047342,-460.0,0.00022191,4]
[365790450,1749915047352,-460.0,0.00022191,4]
[365790451,1749915047362,-460.0,0.00022191,4]
[365790452,1749915047371,-460.0,0.00022191,4]
[365790453,1749915047381,-460.0,0.00022191,4]
[365790454,1749915047391,-460.0,0.00022191,4]
[365790455,1749915047401,-3079.91,0.00022191,4]
[365790456,1749915047411,-1330.29,0.00022191,4]
[365790457,1749915047420,-320.0,0.00022191,4]
[365790458,1749915047429,-460.0,0.00022191,4]
[365790459,1749915047439,-460.0,0.00022191,4]
[365790460,1749915047454,-460.0,0.00022191,4]
[365790461,1749915047464,-460.0,0.00022191,4]
[365790462,1749915047474,-460.0,0.00022191,4]
[365790463,1749915047484,-460.0,0.00022191,4]
[365790464,1749915047494,-410.0,0.00022191,4]
[365790465,1749915047505,-400.0,0.00022191,4]
[365790466,1749915047515,-460.0,0.00022191,4]
[365790467,1749915047526,-460.0,0.00022191,4]
[365790468,1749915047541,-460.0,0.00022191,4]
[365790469,1749915047551,-420.0,0.00022191,4]
[365790470,1749915047561,-460.0,0.00022191,4]
[365790471,1749915047571,-460.0,0.00022191,4]
[365790472,1749915047582,-460.0,0.00022191,4]
[365790473,1749915047591,-463.94,0.00022191,2]
[365790474,1749915047601,-369.73863018,0.00022191,4]
[365790475,1749915047611,-460.0,0.00022191,4]
[365790476,1749915047620,-460.0,0.00022191,4]
[365790477,1749915047629,-460.0,0.00022191,4]
[365790478,1749915047640,-460.0,0.00022191,4]
[365790479,1749915047649,-460.0,0.00022191,4]
[365790480,1749915047658,-460.0,0.00022191,4]
[365790481,1749915047667,-460.0,0.00022191,4]
[365790482,1749915047677,-1666.76,0.00022191,4]
[365790483,1749915047686,-460.0,0.00022191,4]
[365790484,1749915047695,-460.0,0.00022191,4]
[365790485,1749915047705,-460.0,0.00022191,4]
[365790486,1749915047715,-420.0,0.00022191,4]
[365790487,1749915047725,-460.0,0.00022191,4]
[365790488,1749915047734,-684.86,0.00022191,4]
[365790489,1749915047744,-460.0,0.00022191,4]
[365790490,1749915047754,-403.1227896,0.00022191,4]
[365790491,1749915047764,-460.0,0.00022191,4]
[365790492,1749915047774,-1113.82,0.00022191,4]
[365790493,1749915047783,-460.0,0.00022191,4]
[365790494,1749915047792,-400.0,0.00022191,4]
[365790495,1749915047803,-460.0,0.00022191,4]
[365790496,1749915047813,-460.0,0.00022191,4]
[365790497,1749915047822,-404.18593435,0.00022191,4]
[365790498,1749915047831,-400.0,0.00022191,4]
[365790499,1749915047841,-427.99699983,0.00022191,4]
[365790500,1749915047851,-626.64,0.00022191,4]
[365790501,1749915047860,-460.0,0.00022191,4]
[365790502,1749915047871,-362.09651185,0.00022191,4]
[365790503,1749915047880,-460.0,0.00022191,4]
[365790504,1749915047889,-460.0,0.00022191,4]
[365790505,1749915047899,-2172.23,0.00022191,4]
[365790506,1749915047909,-460.0,0.00022191,4]
[365790507,1749915047918,-460.0,0.00022191,4]
[365790508,1749915047927,-789.36323337,0.0002221,6]
[365790509,1749915047937,-1058.54433624,0.00022228,2]
[365790510,1749915047946,-600.0,0.0002225,2]
[365790511,1749915047956,-789.36323337,0.00022314,7]
[365790512,1749915047966,-1058.54433624,0.00022365,2]
[365790513,1749915047975,-300.0,0.00022372,2]
[365790514,1749915047984,-789.36323337,0.00022417,7]
[365790515,1749915047994,-500.0,0.00022464,3]
[365790516,1749915048003,-370.0,0.00022465,4]
[365790517,1749915048012,-178.97890036,0.00022465,4]
[365790518,1749915048021,-316.49676492,0.00022465,4]
[365790519,1749915048031,-323.02023611,0.00022465,4]
[365790520,1749915048040,-410.0,0.00022465,4]
[365790521,1749915048050,-330.0,0.00022465,4]
[365790522,1749915048060,-460.0,0.00022465,4]
[365790523,1749915048069,-396.06911421,0.00022465,4]
[365790524,1749915048078,-460.0,0.00022465,2]
[365790525,1749915048087,-320.0,0.00022465,4]
[365790526,1749915048096,-460.0,0.00022465,4]
[365790527,1749915048110,-290.26099462,0.00022465,4]
[365790528,1749915048120,-336.5107476,0.00022465,4]
[365790529,1749915048130,-460.0,0.00022465,4]
[365790530,1749915048139,-460.0,0.00022465,4]
[365790531,1749915048148,-460.0,0.00022465,4]
[365790532,1749915048158,-460.0,0.00022465,4]
[365790533,1749915048167,-386.70531427,0.00022465,4]
[365790534,1749915048176,-540.0,0.00022465,4]
[365790535,1749915048186,-460.0,0.00022465,4]
[365790536,1749915048195,-282.65671009,0.00022465,4]
[365790537,1749915048205,-410.0,0.00022465,4]
[365790538,1749915048215,-460.0,0.00022465,4]
[365790539,1749915048226,-213.25082279,0.00022465,4]
[365790540,1749915048236,-460.0,0.00022465,4]
[365790541,1749915048247,-328.02068412,0.00022465,4]
[365790542,1749915048257,-410.0,0.00022465,4]
[365790543,1749915048267,-370.0,0.00022465,4]
[365790544,1749915048278,-355.2196465,0.00022465,4]
[365790545,1749915048288,-460.0,0.00022465,4]
[365790546,1749915048298,-323.19832708,0.00022465,4]
[365790547,1749915048308,-180.30474223,0.00022465,4]
[365790548,1749915048318,-460.0,0.00022465,4]
[365790549,1749915048328,-353.53665206,0.00022465,4]
[365790550,1749915048338,-410.0,0.00022465,4]
[365790551,1749915048347,-460.0,0.00022465,4]
[365790552,1749915048358,-362.19441621,0.00022465,4]
[365790553,1749915048368,-460.0,0.00022465,4]
[365790554,1749915048377,-460.0,0.00022465,4]
[365790555,1749915048387,-400.0,0.00022465,4]
[365790556,1749915048396,-460.0,0.00022465,4]
[365790557,1749915048406,-460.0,0.00022465,4]
[365790558,1749915048416,-360.0,0.00022465,4]
[365790559,1749915048426,-460.0,0.00022465,4]
[365790560,1749915048435,-460.0,0.00022465,4]
[365790561,1749915048448,-377.97430761,0.00022465,4]
[365790562,1749915048458,-220.0,0.00022465,4]
[365790563,1749915048468,-440.0,0.00022465,4]
[365790564,1749915048477,-460.0,0.00022465,4]
[365790565,1749915048487,-460.0,0.00022465,4]
[365790566,1749915048503,-460.0,0.00022465,4]
[365790567,1749915048517,-338.81530803,0.00022465,4]
[365790568,1749915048529,-460.0,0.00022465,4]
[365790569,1749915048540,-360.0,0.00022465,4]
[365790570,1749915048552,-581.23456892,0.00022465,4]
[365790571,1749915048563,-460.0,0.00022465,4]
[365790572,1749915048574,-460.0,0.00022465,4]
[365790573,1749915048584,-460.0,0.00022465,4]
[365790574,1749915048595,-460.0,0.00022465,4]
[365790575,1749915048605,-362.50966734,0.00022465,4]
[365790576,1749915048615,-460.0,0.00022465,4]
[365790577,1749915048625,-460.0,0.00022465,4]
[365790578,1749915048638,-460.0,0.00022465,4]
[365790579,1749915048649,-363.03324262,0.00022465,4]
[365790580,1749915048659,-460.0,0.00022465,4]
[365790581,1749915048670,-460.0,0.00022465,4]
[365790582,1749915048681,-460.0,0.00022465,4]
[365790583,1749915048691,-460.0,0.00022465,4]
[365790584,1749915048701,-761.44,0.00022465,4]
[365790585,1749915048711,-460.0,0.00022465,4]
[365790586,1749915048721,-460.0,0.00022465,4]
[365790587,1749915048732,-460.0,0.00022465,4]
[365790588,1749915048745,-460.0,0.00022465,4]
[365790589,1749915048756,-460.0,0.00022465,4]
[365790590,1749915048766,-460.0,0.00022465,4]
[365790591,1749915048778,-400.0,0.00022465,4]
[365790592,1749915048788,-460.0,0.00022465,4]
[365790593,1749915048800,-360.0,0.00022465,4]
[365790594,1749915048811,-460.0,0.00022465,4]
[365790595,1749915048821,-395.41635084,0.00022465,4]
[365790596,1749915048831,-460.0,0.00022465,4]
[365790597,1749915048841,-460.0,0.00022465,4]
[365790598,1749915048851,-460.0,0.00022465,4]
[365790599,1749915048861,-460.0,0.00022465,4]
[365790600,1749915048871,-460.0,0.00022465,4]
[365790601,1749915048882,-460.0,0.00022465,4]
[365790602,1749915048892,-362.10339866,0.00022465,4]
[365790603,1749915048902,-460.0,0.00022465,4]
[365790604,1749915048912,-358.39040511,0.00022465,4]
[365790605,1749915048922,-460.0,0.00022465,4]
[365790606,1749915048932,-460.0,0.00022465,4]
[365790607,1749915048942,-460.0,0.00022465,4]
[365790608,1749915048953,-460.0,0.00022465,4]
[365790609,1749915048963,-350.0,0.00022465,4]
[365790610,1749915048972,-320.0,0.00022465,4]
[365790611,1749915048982,-460.0,0.00022465,4]
[365790612,1749915048992,-460.0,0.00022465,4]
[365790613,1749915049002,-460.0,0.00022465,4]
[365790614,1749915049012,-460.0,0.00022465,4]
[365790615,1749915049022,-450.0,0.00022465,4]
[365790616,1749915049032,-460.0,0.00022465,4]
[365790617,1749915049042,-460.0,0.00022465,4]
[365790618,1749915049052,-460.0,0.00022465,4]
[365790619,1749915049061,-460.0,0.00022465,4]
[365790620,1749915049072,-430.0,0.00022465,4]
[365790621,1749915049082,-460.0,0.00022465,4]
[365790622,1749915049092,-460.0,0.00022465,4]
[365790623,1749915049102,-460.0,0.00022465,4]
[365790624,1749915049112,-460.0,0.00022465,4]
[365790625,1749915049122,-460.0,0.00022465,4]
[365790626,1749915049133,-460.0,0.00022465,4]
[365790627,1749915049143,-460.0,0.00022465,4]
[365790628,1749915049153,-460.0,0.00022465,4]
[365790629,1749915049163,-460.0,0.00022465,4]
[365790630,1749915049173,-600.0,0.00022465,4]
[365790631,1749915049184,-460.0,0.00022465,4]
[365790632,1749915049193,-460.0,0.00022465,4]
[365790633,1749915049204,-360.0,0.00022465,4]
[365790634,1749915049215,-1162.52,0.00022465,4]
[365790635,1749915049225,-460.0,0.00022465,4]
[365790636,1749915049236,-460.0,0.00022465,4]
[365790637,1749915049246,-460.0,0.00022465,4]
[365790638,1749915049257,-330.0,0.00022465,4]
[365790639,1749915049267,-460.0,0.00022465,4]
[365790640,1749915049278,-460.0,0.00022465,4]
[365790641,1749915049288,-460.0,0.00022465,4]
[365790642,1749915049299,-460.0,0.00022465,4]
[365790643,1749915049309,-312.68366557,0.00022465,4]
[365790644,1749915049319,-460.0,0.00022465,4]
[365790645,1749915049329,-314.38317972,0.00022465,4]
[365790646,1749915049340,-1338.77,0.00022465,4]
[365790647,1749915049350,-360.0,0.00022465,4]
[365790648,1749915049360,-460.0,0.00022465,4]
[365790649,1749915049370,-460.0,0.00022465,4]
[365790650,1749915049380,-460.0,0.00022465,4]
[365790651,1749915049390,-460.0,0.00022465,4]
[365790652,1749915049400,-313.94167833,0.00022465,4]
[365790653,1749915049409,-460.0,0.00022465,4]
[365790654,1749915049419,-460.0,0.00022465,4]
[365790655,1749915049429,-460.0,0.00022465,4]
[365790656,1749915049439,-2699.73,0.00022465,4]
[365790657,1749915049452,-460.0,0.00022465,4]
[365790658,1749915049462,-783.51,0.00022465,4]
[365790659,1749915049472,-346.09345987,0.00022465,4]
[365790660,1749915049481,-408.16965099,0.00022465,4]
[365790661,1749915049610,-460.0,0.00022465,4]
[365790662,1749915049620,-460.0,0.00022465,4]
[365790663,1749915049630,-460.0,0.00022465,4]
[365790664,1749915049640,-460.0,0.00022465,4]
[365790665,1749915049650,-460.0,0.00022465,4]
[365790666,1749915049660,-460.0,0.00022465,4]
[365790667,1749915049669,-460.0,0.00022465,4]
[365790668,1749915049678,-1142.76,0.00022465,4]
[365790669,1749915049688,-460.0,0.00022465,4]
[365790670,1749915049697,-460.0,0.00022465,4]
[365790671,1749915049707,-460.0,0.00022465,4]
[365790672,1749915049716,-241.08113797,0.00022465,4]
[365790673,1749915049725,-460.0,0.00022465,4]
[365790674,1749915049735,-460.0,0.00022465,4]
[365790675,1749915049744,-460.0,0.00022465,4]
[365790676,1749915049754,-460.0,0.00022465,4]
[365790677,1749915049763,-460.0,0.00022465,4]
[365790678,1749915049773,-560.0,0.00022465,4]
[365790679,1749915049783,-460.0,0.00022465,4]
[365790680,1749915049793,-460.0,0.00022465,4]
[365790681,1749915049803,-460.0,0.00022465,4]
[365790682,1749915049812,-460.0,0.00022465,4]
[365790683,1749915049821,-169.22602945,0.00022465,4]
[365790684,1749915049831,-460.0,0.00022465,4]
[365790685,1749915049841,-689.02,0.00022465,4]
[365790686,1749915049851,-226.53535668,0.00022465,4]
[365790687,1749915049860,-460.0,0.00022465,4]
[365790688,1749915049869,-310.0,0.00022465,4]
[365790689,1749915049878,-460.0,0.00022465,4]
[365790690,1749915049886,-460.0,0.00022465,4]
[365790691,1749915049895,-460.0,0.00022465,4]
[365790692,1749915049906,-460.0,0.00022465,4]
[365790693,1749915049917,-460.0,0.00022465,4]
[365790694,1749915049928,-460.0,0.00022465,4]
[365790695,1749915049938,-460.0,0.00022465,4]
[365790696,1749915049947,-460.0,0.00022465,4]
[365790697,1749915049956,-379.94098578,0.00022465,4]
[365790698,1749915049966,-460.0,0.00022465,4]
[365790699,1749915049975,-460.0,0.00022465,4]
[365790700,1749915049984,-500.0,0.00022465,4]
[365790701,1749915049994,-759.21,0.00022465,4]
[365790702,1749915050004,-460.0,0.00022465,4]
[365790703,1749915050014,-460.0,0.00022465,4]
[365790704,1749915050024,-245.34928135,0.00022465,4]
[365790705,1749915050033,-460.0,0.00022465,4]
[365790706,1749915050043,-430.0,0.00022465,4]
[365790707,1749915050052,-460.0,0.00022465,4]
[365790708,1749915050061,-460.0,0.00022465,4]
[365790709,1749915050070,-460.0,0.00022465,4]
[365790710,1749915050080,-833.87,0.00022465,4]
[365790711,1749915050089,-460.0,0.00022465,4]
[365790712,1749915050098,-460.0,0.00022465,4]
[365790713,1749915050107,-460.0,0.00022465,4]
[365790714,1749915050117,-460.0,0.00022465,4]
[365790715,1749915050126,-460.0,0.00022465,4]
[365790716,1749915050136,-460.0,0.00022465,4]
[365790717,1749915050146,-509.9,0.00022465,4]
[365790718,1749915050156,-460.0,0.00022465,4]
[365790719,1749915050166,-460.0,0.00022465,4]
[365790720,1749915050175,-460.0,0.00022465,4]
[365790721,1749915050185,-430.0,0.00022465,4]
[365790722,1749915050194,-460.0,0.00022465,4]
[365790723,1749915050203,-460.0,0.00022465,4]
[365790724,1749915050217,-390.0,0.00022465,4]
[365790725,1749915050227,-460.0,0.00022465,4]
[365790726,1749915050236,-400.0,0.00022465,4]
[365790727,1749915050246,-460.0,0.00022465,4]
[365790728,1749915050255,-460.0,0.00022465,4]
[365790729,1749915050265,-1804.39,0.00022465,4]
[365790730,1749915050275,-420.0,0.00022465,4]
[365790731,1749915050285,-460.0,0.00022465,4]
[365790732,1749915050295,-460.0,0.00022465,4]
[365790733,1749915050305,-2233.91,0.00022465,4]
[365790734,1749915050315,-2887.84,0.00022465,4]
[365790735,1749915050324,-460.0,0.00022465,4]
[365790736,1749915050333,-370.0,0.00022465,4]
[365790737,1749915050343,-460.0,0.00022465,4]
[365790738,1749915050353,-460.0,0.00022465,4]
[365790739,1749915050362,-480.0,0.00022465,4]
[365790740,1749915050372,-460.0,0.00022465,4]
[365790741,1749915050381,-460.0,0.00022465,4]
[365790742,1749915050391,-516.62,0.00022465,4]
[365790743,1749915050400,-460.0,0.00022465,4]
[365790744,1749915050409,-466.96312873,0.00022465,4]
[365790745,1749915050418,-400.0,0.00022465,4]
[365790746,1749915050428,-460.0,0.00022465,4]
[365790747,1749915050437,-3097.92,0.00022465,4]
[365790748,1749915050448,-460.0,0.00022465,4]
[365790749,1749915050459,-460.0,0.00022465,4]
[365790750,1749915050468,-2084.42,0.00022465,4]
[365790751,1749915050477,-460.0,0.00022465,4]
[365790752,1749915050486,-480.98855003,0.00022465,4]
[365790753,1749915050498,-283.81856176,0.00022465,4]
[365790754,1749915050507,-325.27253663,0.00022465,4]
[365790755,1749915050516,-460.0,0.00022465,4]
[365790756,1749915050526,-460.0,0.00022465,4]
[365790757,1749915050536,-3079.91,0.00022465,4]
[365790758,1749915050545,-1330.29,0.00022465,4]
[365790759,1749915050555,-460.0,0.00022465,4]
[365790760,1749915050565,-460.0,0.00022465,4]
[365790761,1749915050575,-460.0,0.00022465,4]
[365790762,1749915050584,-460.0,0.00022465,4]
[365790763,1749915050594,-460.0,0.00022465,4]
[365790764,1749915050604,-460.0,0.00022465,4]
[365790765,1749915050613,-460.0,0.00022465,4]
[365790766,1749915050623,-352.90006764,0.00022465,4]
[365790767,1749915050632,-362.78983242,0.00022465,4]
[365790768,1749915050641,-460.0,0.00022465,4]
[365790769,1749915050651,-460.0,0.00022465,4]
[365790770,1749915050660,-460.0,0.00022465,4]
[365790771,1749915050669,-463.94,0.00022465,2]
[365790772,1749915050678,-460.0,0.00022465,4]
[365790773,1749915050688,-460.0,0.00022465,4]
[365790774,1749915050697,-460.0,0.00022465,4]
[365790775,1749915050715,-460.0,0.00022465,4]
[365790776,1749915050724,-460.0,0.00022465,4]
[365790777,1749915050734,-460.0,0.00022465,4]
[365790778,1749915050743,-460.0,0.00022465,4]
[365790779,1749915050753,-1666.76,0.00022465,4]
[365790780,1749915050762,-410.0,0.00022465,4]
[365790781,1749915050772,-460.0,0.00022465,4]
[365790782,1749915050781,-460.0,0.00022465,4]
[365790783,1749915050791,-420.0,0.00022465,4]
[365790784,1749915050801,-684.86,0.00022465,4]
[365790785,1749915050810,-378.49451351,0.00022465,4]
[365790786,1749915050819,-460.0,0.00022465,4]
[365790787,1749915050830,-1113.82,0.00022465,4]
[365790788,1749915050840,-460.0,0.00022465,4]
[365790789,1749915050850,-460.0,0.00022465,4]
[365790790,1749915050859,-460.0,0.00022465,4]
[365790791,1749915050868,-626.64,0.00022465,4]
[365790792,1749915050877,-460.0,0.00022465,4]
[365790793,1749915050886,-460.0,0.00022465,4]
[365790794,1749915050895,-2172.23,0.00022465,4]
[365790795,1749915050905,-460.0,0.00022465,4]
[365790796,1749915050913,-460.0,0.00022465,4]
[365790797,1749915050923,-431.49474757,0.00022466,2]
[365790798,1749915050933,-500.0,0.00022473,2]
[365790799,1749915050944,-500.0,0.00022473,2]
[365790800,1749915050953,-500.0,0.00022473,2]
[365790801,1749915050962,-1000.0,0.00022521,2]
[365790802,1749915050973,-1000.0,0.00022521,2]
[365790803,1749915050984,-789.36323337,0.00022521,7]
[365790804,1749915050994,-789.36323337,0.00022624,7]
[365790805,1749915051003,-1000.0,0.00022721,2]
[365790806,1749915051012,-1002.50967136,0.00022721,2]
[365790807,1749915051023,-1000.0,0.00022721,2]
[365790808,1749915051033,-333.56436477,0.00022721,2]
[365790809,1749915051042,-1200.0,0.00022721,2]
[365790810,1749915051051,-501.16145131,0.00022721,2]
[365790811,1749915051060,-1000.0,0.00022721,2]
[365790812,1749915051070,-789.36323337,0.00022728,7]
[365790813,1749915051079,-460.0,0.00022739,4]
[365790814,1749915051088,-380.0,0.00022739,2]
[365790815,1749915051097,-157.81000839,0.00022739,4]
[365790816,1749915051107,-320.0,0.00022739,4]
[365790817,1749915051116,-460.0,0.00022739,4]
[365790818,1749915051125,-360.0,0.00022739,4]
[365790819,1749915051134,-400.0,0.00022739,4]
[365790820,1749915051143,-380.0,0.00022739,4]
[365790821,1749915051152,-460.0,0.00022739,4]
[365790822,1749915051161,-380.0,0.00022739,4]
[365790823,1749915051170,-152.02972206,0.00022739,4]
[365790824,1749915051179,-460.0,0.00022739,4]
[365790825,1749915051189,-370.0,0.00022739,4]
[365790826,1749915051198,-460.0,0.00022739,4]
[365790827,1749915051208,-460.0,0.00022739,4]
[365790828,1749915051217,-333.37129632,0.00022739,4]
[365790829,1749915051227,-460.0,0.00022739,4]
[365790830,1749915051237,-460.0,0.00022739,4]
[365790831,1749915051246,-460.0,0.00022739,4]
[365790832,1749915051255,-350.0,0.00022739,4]
[365790833,1749915051264,-460.0,0.00022739,4]
[365790834,1749915051274,-460.0,0.00022739,4]
[365790835,1749915051283,-460.0,0.00022739,4]
[365790836,1749915051292,-460.0,0.00022739,4]
[365790837,1749915051301,-301.44176529,0.00022739,4]
[365790838,1749915051310,-460.0,0.00022739,4]
[365790839,1749915051319,-460.0,0.00022739,4]
[365790840,1749915051329,-460.0,0.00022739,4]
[365790841,1749915051338,-460.0,0.00022739,4]
[365790842,1749915051347,-460.0,0.00022739,4]
[365790843,1749915051357,-460.0,0.00022739,4]
[365790844,1749915051367,-460.0,0.00022739,4]
[365790845,1749915051376,-460.0,0.00022739,4]
[365790846,1749915051386,-330.0,0.00022739,4]
[365790847,1749915051395,-761.44,0.00022739,4]
[365790848,1749915051404,-460.0,0.00022739,4]
[365790849,1749915051415,-265.65803458,0.00022739,4]
[365790850,1749915051425,-460.0,0.00022739,4]
[365790851,1749915051435,-460.0,0.00022739,4]
[365790852,1749915051448,-460.0,0.00022739,4]
[365790853,1749915051457,-460.0,0.00022739,4]
[365790854,1749915051467,-460.0,0.00022739,4]
[365790855,1749915051476,-460.0,0.00022739,4]
[365790856,1749915051486,-430.0,0.00022739,4]
[365790857,1749915051495,-460.0,0.00022739,4]
[365790858,1749915051505,-460.0,0.00022739,4]
[365790859,1749915051514,-460.0,0.00022739,4]
[365790860,1749915051524,-460.0,0.00022739,4]
[365790861,1749915051533,-460.0,0.00022739,4]
[365790862,1749915051542,-293.27911492,0.00022739,4]
[365790863,1749915051551,-350.0,0.00022739,4]
[365790864,1749915051561,-420.0,0.00022739,4]
[365790865,1749915051571,-460.0,0.00022739,4]
[365790866,1749915051580,-460.0,0.00022739,4]
[365790867,1749915051589,-460.0,0.00022739,4]
[365790868,1749915051598,-249.25624937,0.00022739,4]
[365790869,1749915051607,-460.0,0.00022739,4]
[365790870,1749915051617,-420.0,0.00022739,4]
[365790871,1749915051626,-460.0,0.00022739,4]
[365790872,1749915051636,-460.0,0.00022739,4]